bitfinex/quotes_SOLUSD_20241127
["timestamp","ask_amount","ask_price","bid_price","bid_amount"]
[1732693119603,0.5067034,234.3,234.25,8.43789574]
[1732693120416,2.6407034,234.3,234.25,8.43789574]
[1732693121897,0.5067034,234.3,234.25,8.43789574]
[1732693122118,2.6407034,234.3,234.23,8.43789574]
[1732693122320,2.6407034,234.3,234.2,23.776884]
[1732693122525,18.2623034,234.3,234.2,23.776884]
[1732693122733,8.43789574,234.29,234.2,8.43789574]
[1732693123517,18.2623034,234.3,234.22,8.43789574]
[1732693123900,18.2623034,234.3,234.16,14.9469]
[1732693124108,18.2623034,234.3,234.23,8.43789574]
[1732693124511,15.09289574,234.29,234.17,23.776884]
[1732693124800,6.655,234.29,234.23,8.43789574]
[1732693125615,6.655,234.29,234.25,8.43789574]
[1732693125923,2.6407034,234.3,234.25,8.43789574]
[1732693128225,0.5067034,234.3,234.29,8.43789574]
[1732693128614,0.5067034,234.3,234.27,8.43789574]
[1732693129609,0.5067034,234.3,234.29,32.21477974]
[1732693130402,0.5067034,234.3,234.29,36.48297974]
[1732693130915,0.5067034,234.3,234.29,28.045084]
[1732693131114,0.5067034,234.3,234.29,32.21477974]
[1732693131632,2.132,234.52,234.37,20.0]
[1732693131828,2.132,234.52,234.45,8.43789574]
[1732693132140,0.5067034,234.53,234.45,32.21477974]
[1732693132309,0.5067034,234.53,234.45,36.48007974]
[1732693133104,0.5067034,234.53,234.45,70.87114576]
[1732693133509,0.5067034,234.53,234.45,37.1195628]
[1732693133722,0.5067034,234.53,234.46,23.776884]
[1732693133918,0.5067034,234.53,234.52,8.43789574]
[1732693134426,0.5067034,234.53,234.52,17.36476474]
[1732693135329,0.5067034,234.53,234.52,13.10076474]
[1732693135731,0.5067034,234.53,234.52,36.87764874]
[1732693142614,0.5067034,234.53,234.52,13.10076474]
[1732693142920,0.5067034,234.53,234.51,23.776884]
[1732693143512,0.5067034,234.53,234.45,4.2652]
[1732693143714,0.5067034,234.53,234.41,21.8769]
[1732693143715,2.6386034,234.53,234.46,13.10076474]
[1732693143930,13.10076474,234.52,234.44,13.10076474]
[1732693144524,2.1321,234.51,234.44,13.10076474]
[1732693145436,2.6386034,234.53,234.46,13.10076474]
[1732693145732,13.10076474,234.52,234.44,13.10076474]
[1732693146528,2.1321,234.51,234.44,13.10076474]
[1732693146737,2.1321,234.51,234.46,13.10076474]
[1732693147420,0.5067034,234.53,234.46,13.10076474]
[1732693147421,2.6386034,234.53,234.46,13.10076474]
[1732693151548,0.5067034,234.53,234.48,13.10076474]
[1732693151717,2.6386034,234.53,234.48,13.10076474]
[1732693152039,0.5067034,234.53,234.5,13.10076474]
[1732693152242,0.5067034,234.53,234.48,13.10076474]
[1732693152532,2.6386034,234.53,234.48,13.10076474]
[1732693153215,0.5067034,234.53,234.48,13.10076474]
[1732693154619,0.5067034,234.53,234.5,13.10076474]
[1732693157730,2.6387034,234.53,234.48,13.10076474]
[1732693158539,2.6387034,234.53,234.46,13.10076474]
[1732693159620,0.5067034,234.53,234.48,13.10076474]
[1732693160322,0.5067034,234.53,234.5,13.10076474]
[1732693160523,0.5067034,234.53,234.51,13.10076474]
[1732693164038,0.5067034,234.53,234.49,13.10076474]
[1732693164550,0.5067034,234.53,234.51,8.38950805]
[1732693165536,0.5067034,234.53,234.44,23.776884]
[1732693166149,0.5067034,234.53,234.5,8.38950805]
[1732693167938,0.5067034,234.53,234.52,8.38950805]
[1732693168149,0.5067034,234.53,234.52,36.43039205]
[1732693169364,0.5067034,234.53,234.52,28.040884]
[1732693169529,0.5067034,234.53,234.52,36.43039205]
[1732693172532,0.5067034,234.53,234.52,12.65350805]
[1732693172727,0.5067034,234.53,234.52,4.264]
[1732693172945,0.5067034,234.53,234.52,12.65350805]
[1732693175058,0.5067034,234.53,234.52,13.29286319]
[1732693175631,0.5067034,234.53,234.52,12.65350805]
[1732693177661,0.5067034,234.53,234.5,4.2643]
[1732693177875,0.5067034,234.53,234.52,8.38950805]
[1732693179663,0.5067034,234.53,234.52,12.65350805]
[1732693179853,0.5067034,234.53,234.47,4.2649]
[1732693180037,2.3034,234.58,234.53,0.4989451]
[1732693180238,15.1319,234.57,234.53,0.4989451]
[1732693181865,2.1316,234.56,234.53,0.4989451]
[1732693182764,17.2634,234.57,234.53,0.4989451]
[1732693186452,8.38950805,234.56,234.53,0.4989451]
[1732693188565,8.38950805,234.54,234.53,0.4989451]
[1732693188770,18.38950779,234.54,234.53,0.4989451]
[1732693189479,9.99999974,234.54,234.53,0.4989451]
[1732693189646,18.38950779,234.54,234.53,0.4989451]
[1732693189849,20.0,234.51,234.4,8.38950805]
[1732693190057,8.38950805,234.48,234.4,8.38950805]
[1732693190261,8.38950805,234.46,234.3,32.077]
[1732693190568,8.38950805,234.46,234.36,8.38950805]
[1732693190952,8.38950805,234.46,234.31,4.2678]
[1732693190953,8.38950805,234.44,234.31,4.2678]
[1732693191266,8.38950805,234.41,234.33,8.38950805]
[1732693192054,20.0,234.42,234.33,8.38950805]
[1732693192250,8.38950805,234.46,234.37,8.38950805]
[1732693193474,8.38950805,234.46,234.37,12.65620805]
[1732693193656,2.1326,234.45,234.31,4.2678]
[1732693193970,6.3562,234.47,234.39,8.38950805]
[1732693194168,8.4886,234.47,234.39,8.38950805]
[1732693194368,8.38950805,234.46,234.39,8.38950805]
[1732693194756,8.38950805,234.46,234.31,14.9374]
[1732693194974,8.38950805,234.46,234.37,8.38950805]
[1732693195268,8.38950805,234.46,234.37,12.65600805]
[1732693196271,10.52200805,234.46,234.37,12.65600805]
[1732693196961,8.38950805,234.44,234.37,12.65600805]
[1732693199280,8.38950805,234.44,234.31,10.6696]
[1732693199475,8.38950805,234.44,234.35,8.38950805]
[1732693200672,8.38950805,234.44,234.36,4.2669]
[1732693204484,8.38950805,234.4,234.32,4.2675]
[1732693205479,7.13249974,234.46,234.28,4.2683]
[1732693205480,24.12180805,234.38,234.28,4.2683]
[1732693205779,8.38950805,234.34,234.26,8.38950805]
[1732693206571,8.38950805,234.34,234.27,4.2685]
[1732693207679,8.38950805,234.34,234.26,8.38950805]
[1732693207680,8.38950805,234.34,234.28,8.38950805]
[1732693208058,15.7323,234.38,234.32,8.38950805]
[1732693209266,15.7323,234.38,234.3,8.38950805]
[1732693209586,8.38950805,234.35,234.23,14.9422]
[1732693209761,8.38950805,234.33,234.23,4.2693]
[1732693209957,8.38950805,234.31,234.23,4.2693]
[1732693210155,8.38950805,234.31,234.23,12.65880805]
[1732693211859,2.1339,234.31,234.21,8.38950805]
[1732693212085,8.38950805,234.29,234.18,4.2702]
[1732693212385,13.1397912,234.28,234.2,13.1397912]
[1732693212966,13.1397912,234.28,234.2,17.4094912]
[1732693214685,15.2739912,234.28,234.2,13.1397912]
[1732693215869,30.6305912,234.28,234.2,13.1397912]
[1732693216073,13.1397912,234.26,234.19,4.2699]
[1732693216366,13.1397912,234.24,234.15,13.1397912]
[1732693216787,6.4163,234.27,234.15,13.1397912]
[1732693216788,13.1397912,234.22,234.15,13.1397912]
[1732693217877,15.2744912,234.22,234.15,13.1397912]
[1732693219576,13.1397912,234.24,234.17,13.1397912]
[1732693220267,13.1397912,234.24,234.08,2.08730956]
[1732693220268,20.0,234.21,234.08,2.08730956]
[1732693220468,13.1397912,234.1,233.99,13.1397912]
[1732693220791,13.1397912,234.1,234.01,13.1397912]
[1732693221371,13.1397912,234.08,233.99,13.1397912]
[1732693221690,13.1397912,234.06,233.97,13.1397912]
[1732693221871,13.1397912,234.04,233.96,13.1397912]
[1732693222072,13.1397912,234.06,233.96,4.2741]
[1732693222273,13.1397912,234.06,233.97,13.1397912]
[1732693223870,13.1397912,234.06,233.96,4.274]
[1732693224076,13.1397912,234.04,233.96,17.4137912]
[1732693224587,13.1397912,234.04,233.95,0.5067034]
[1732693224973,15.2761912,234.04,233.95,0.5067034]
[1732693227184,15.2761912,234.04,233.96,13.1397912]
[1732693227703,15.2761912,234.04,233.95,0.5067034]
[1732693227877,9.99999974,234.09,233.95,0.5067034]
[1732693227878,13.1397912,234.03,233.95,0.5067034]
[1732693228072,21.8015,234.11,234.01,13.1397912]
[1732693228284,34.9412912,234.11,234.01,13.1397912]
[1732693228591,37.0769912,234.11,234.03,13.1397912]
[1732693229187,37.0769912,234.11,234.01,13.1397912]
[1732693229388,15.2757912,234.09,234.01,13.1397912]
[1732693229591,13.1397912,234.07,233.99,13.1397912]
[1732693230300,13.1397912,234.07,233.97,13.1397912]
[1732693230507,13.1397912,234.05,233.96,4.2741]
[1732693230674,13.1397912,234.05,233.96,17.4138912]
[1732693231676,13.1397912,234.07,234.0,13.1397912]
[1732693231982,13.1397912,234.09,234.0,13.1397912]
[1732693232188,2.1358,234.1,234.02,13.1397912]
[1732693232707,34.9412912,234.11,234.02,13.1397912]
[1732693232872,21.8015,234.11,234.02,13.1397912]
[1732693233075,34.9412912,234.11,234.04,13.1397912]
[1732693234916,37.0769912,234.11,234.02,13.1397912]
[1732693235272,13.1397912,234.09,234.0,13.1397912]
[1732693235706,28.8896912,234.11,234.02,13.1397912]
[1732693236503,28.8896912,234.11,234.04,13.1397912]
[1732693237473,31.0253912,234.11,234.04,13.1397912]
[1732693237886,31.0253912,234.11,234.02,4.2731]
[1732693238075,13.1397912,234.09,233.97,15.9677]
[1732693238276,17.8856,234.11,234.0,8.42388915]
[1732693238277,8.42388915,234.08,234.0,8.42388915]
[1732693238488,8.42388915,234.08,233.98,4.2738]
[1732693238773,8.42388915,234.08,234.01,8.42388915]
[1732693238986,17.8856,234.11,234.01,8.42388915]
[1732693239194,17.8856,234.11,234.03,8.42388915]
[1732693239389,15.7499,234.11,234.03,8.42388915]
[1732693239679,15.7499,234.11,234.05,8.42388915]
[1732693240283,15.7499,234.11,234.05,12.69638915]
[1732693240995,10.55938915,234.13,234.05,12.69638915]
[1732693241177,15.7499,234.19,234.12,8.42388915]
[1732693241378,6.0516,234.22,234.15,8.42388915]
[1732693241592,8.1863,234.22,234.15,8.42388915]
[1732693241983,8.1863,234.22,234.08,20.0]
[1732693242192,8.1863,234.22,234.13,12.69478915]
[1732693242397,6.0516,234.22,234.13,12.69478915]
[1732693242906,8.1863,234.22,234.13,12.69478915]
[1732693243274,6.0516,234.22,234.13,12.69478915]
[1732693243481,6.0516,234.22,234.15,8.42388915]
[1732693243680,8.1863,234.22,234.15,8.42388915]
[1732693244104,8.42388915,234.27,234.19,8.42388915]
[1732693244290,2.1343,234.27,234.19,13.14098844]
[1732693246001,13.14098844,234.26,234.19,13.14098844]
[1732693246183,13.14098844,234.21,234.11,13.14098844]
[1732693246485,20.0,234.23,234.11,13.14098844]
[1732693246486,13.14098844,234.19,234.11,13.14098844]
[1732693247108,13.14098844,234.19,234.11,17.41238844]
[1732693247809,2.1349,234.2,234.11,17.41238844]
[1732693247984,13.14098844,234.21,234.13,13.14098844]
[1732693249002,15.27578844,234.21,234.1,20.0]
[1732693249201,13.14098844,234.19,234.08,20.0]
[1732693249405,13.14098844,234.19,234.06,4.2724]
[1732693249708,13.14098844,234.19,234.1,13.14098844]
[1732693250603,13.14098844,234.19,234.1,17.41248844]
[1732693250810,15.27598844,234.19,234.1,17.41248844]
[1732693251100,15.27568844,234.23,234.14,13.14098844]
[1732693252495,13.14098844,234.25,234.16,13.14098844]
[1732693252800,13.14098844,234.25,234.08,14.9521]
[1732693252801,15.27518844,234.27,234.18,13.14098844]
[1732693254391,15.27518844,234.27,234.08,10.6801]
[1732693254392,13.14098844,234.25,234.16,13.14098844]
[1732693254597,13.14098844,234.21,234.09,4.2718]
[1732693254794,13.14098844,234.19,234.11,13.14098844]
[1732693255402,13.14098844,234.21,234.11,13.14098844]
[1732693256122,2.1349,234.2,234.11,17.41238844]
[1732693256613,2.1349,234.2,234.13,13.14098844]
[1732693258114,20.0,234.22,234.13,13.14098844]
[1732693258504,33.14098844,234.22,234.13,13.14098844]
[1732693259410,2.1348,234.21,234.13,13.14098844]
[1732693259711,13.14098844,234.2,234.13,13.14098844]
[1732693260512,2.1348,234.21,234.12,17.41218844]
[1732693260902,13.14098844,234.2,234.12,17.41218844]
[1732693261402,15.27588844,234.2,234.11,13.14098844]
[1732693261994,15.27588844,234.2,234.04,10.6817]
[1732693261995,13.14098844,234.16,234.07,13.14098844]
[1732693262401,16.2374,234.19,234.09,13.14098844]
[1732693262588,13.14098844,234.18,234.09,13.14098844]
[1732693263408,15.27608844,234.18,234.09,17.41268844]
[1732693263618,2.1351,234.18,234.11,13.14098844]
[1732693264515,20.0,234.22,234.01,11.4099]
[1732693264516,13.14098844,234.21,234.14,13.14098844]
[1732693264718,13.14098844,234.21,234.08,4.272]
[1732693264719,18.472,234.24,234.16,13.14098844]
[1732693264907,18.472,234.24,234.18,13.14098844]
[1732693266015,16.3374,234.24,234.18,13.14098844]
[1732693266516,18.4719,234.24,234.18,13.14098844]
[1732693267311,18.4719,234.24,234.16,17.41148844]
[1732693267511,13.14098844,234.23,234.16,17.41148844]
[1732693272603,13.14098844,234.23,234.12,13.14098844]
[1732693272604,13.14098844,234.21,234.12,13.14098844]
[1732693273504,2.1342,234.28,234.18,13.14098844]
[1732693273710,2.1342,234.28,234.2,13.14098844]
[1732693273909,21.32668844,234.29,234.2,13.14098844]
[1732693274302,19.19258844,234.29,234.2,13.14098844]
[1732693274501,31.61228844,234.31,234.22,17.41028844]
[1732693277420,15.27508844,234.29,234.22,13.14098844]
[1732693279198,15.27508844,234.29,234.18,13.14098844]
[1732693279199,13.14098844,234.27,234.18,13.14098844]
[1732693279603,13.14098844,234.25,234.18,13.14098844]
[1732693279816,13.14098844,234.25,234.16,13.14098844]
[1732693281221,15.27508844,234.29,234.2,13.14098844]
[1732693281428,15.27508844,234.29,234.21,4.2696]
[1732693282630,15.27508844,234.29,234.22,13.14098844]
[1732693282631,2.1341,234.29,234.22,13.14098844]
[1732693283531,31.61228844,234.31,234.22,13.14098844]
[1732693284332,15.27508844,234.29,234.19,13.14098844]
[1732693284504,13.14098844,234.25,234.14,10.6773]
[1732693284711,13.14098844,234.23,234.13,17.41208844]
[1732693285019,13.14098844,234.21,234.13,17.41208844]
[1732693285833,19.63448844,234.25,234.17,13.14098844]
[1732693286208,21.76888844,234.25,234.17,13.14098844]
[1732693286509,22.8309,234.31,234.2,13.14098844]
[1732693286826,13.14098844,234.29,234.2,13.14098844]
[1732693287804,13.14098844,234.29,234.21,4.2696]
[1732693288433,35.97188844,234.31,234.22,13.14098844]
[1732693288730,13.14098844,234.29,234.2,13.14098844]
[1732693289214,13.14098844,234.27,234.18,13.14098844]
[1732693289932,13.14098844,234.25,234.17,4.2704]
[1732693292027,15.27538844,234.25,234.17,4.2704]
[1732693292209,13.14098844,234.23,234.14,13.14098844]
[1732693293515,13.14098844,234.23,234.15,4.2707]
[1732693293920,15.27558844,234.23,234.15,4.2707]
[1732693294806,2.1341,234.28,234.15,4.2707]
[1732693295007,13.14098844,234.27,234.17,13.14098844]
[1732693295427,2.1343,234.26,234.17,17.41118844]
[1732693295807,13.14098844,234.25,234.17,17.41118844]
[1732693299234,13.14098844,234.23,234.11,15.2589]
[1732693299437,4.99999974,234.29,234.13,13.14098844]
[1732693299438,13.14098844,234.21,234.13,13.14098844]
[1732693300506,13.14098844,234.21,234.14,4.2709]
[1732693301820,15.27578844,234.21,234.12,4.2711]
[1732693302017,13.14098844,234.19,234.12,4.2711]
[1732693302223,13.14098844,234.19,234.09,13.14098844]
[1732693302740,13.14098844,234.19,234.1,4.2716]
[1732693304331,15.27598844,234.19,234.1,4.2716]
[1732693304538,13.14098844,234.19,234.1,4.2716]
[1732693305117,15.27598844,234.19,234.1,4.2716]
[1732693305325,13.14098844,234.17,234.1,4.2716]
[1732693305524,13.14098844,234.17,234.09,13.14098844]
[1732693305842,13.14098844,234.15,234.07,13.14098844]
[1732693306019,13.14098844,234.13,234.05,17.41348844]
[1732693307255,13.14098844,234.11,234.03,13.14098844]
[1732693309029,13.14098844,234.11,234.03,17.41388844]
[1732693309435,13.14098844,234.13,234.05,13.14098844]
[1732693310042,13.14098844,234.15,234.07,13.14098844]
[1732693310420,13.14098844,234.17,234.07,13.14098844]
[1732693310822,13.14098844,234.18,234.09,13.14098844]
[1732693311228,13.14098844,234.18,234.09,17.41258844]
[1732693311428,15.27608844,234.18,234.09,17.41258844]
[1732693314140,20.0,234.07,233.93,26.21700125]
[1732693314346,13.14098844,234.01,233.95,0.5067034]
[1732693314650,13.14098844,234.01,233.95,4.7810034]
[1732693314943,13.14098844,234.03,233.95,4.7810034]
[1732693317127,13.14098844,234.01,233.95,4.7810034]
[1732693317450,2.1364,234.03,233.95,4.7810034]
[1732693317451,13.14098844,233.99,233.95,0.5067034]
[1732693318146,6.2151,233.96,233.95,0.5067034]
[1732693318352,7.4772,234.04,233.87,13.14098844]
[1732693318353,20.0,233.99,233.87,13.14098844]
[1732693318517,13.14098844,233.96,233.87,13.14098844]
[1732693318721,13.14098844,233.98,233.89,13.14098844]
[1732693319133,13.14098844,233.98,233.83,5.0]
[1732693319336,13.14098844,233.96,233.86,13.14098844]
[1732693319739,13.14098844,233.96,233.86,17.41688844]
[1732693320144,6.2151,234.02,233.86,17.41688844]
[1732693320145,13.14098844,233.94,233.86,17.41688844]
[1732693320528,13.14098844,233.98,233.9,13.14098844]
[1732693320850,13.14098844,234.0,233.92,13.14098844]
[1732693321345,13.14098844,234.0,233.9,33.14098844]
[1732693322047,13.14098844,233.98,233.91,4.2751]
[1732693322748,13.14098844,233.95,233.81,10.6919]
[1732693323052,13.6931,234.02,233.84,13.14098844]
[1732693323053,13.14098844,233.93,233.84,13.14098844]
[1732693323747,13.14098844,233.95,233.86,13.14098844]
[1732693324046,13.14098844,233.95,233.87,4.2758]
[1732693325138,13.14098844,233.93,233.85,4.2761]
[1732693325350,13.14098844,233.91,233.85,4.2761]
[1732693325644,13.14098844,233.95,233.86,13.14098844]
[1732693326027,13.14098844,233.95,233.87,4.2758]
[1732693326251,13.14098844,233.93,233.87,4.2758]
[1732693327033,13.14098844,233.89,233.79,4.2773]
[1732693327239,13.14098844,233.93,233.84,13.14098844]
[1732693327444,13.14098844,233.95,233.86,13.14098844]
[1732693327953,13.14098844,233.95,233.82,10.6917]
[1732693328145,13.14098844,233.95,233.87,13.14098844]
[1732693328729,13.14098844,233.97,233.87,13.14098844]
[1732693329735,13.14098844,233.97,233.88,4.2756]
[1732693330647,13.14098844,233.99,233.91,13.14098844]
[1732693331356,6.20523486,234.08,233.94,13.14098844]
[1732693331528,7.13599974,234.09,234.0,13.14098844]
[1732693331529,13.14098844,234.09,234.0,13.14098844]
[1732693331946,13.14098844,234.09,234.0,17.41438844]
[1732693332826,13.14098844,234.13,234.04,13.14098844]
[1732693333737,13.14098844,234.13,234.04,17.41358844]
[1732693334348,13.14098844,234.11,234.02,13.14098844]
[1732693335160,28.1991,234.17,234.04,13.14098844]
[1732693335161,13.14098844,234.13,234.04,13.14098844]
[1732693336048,13.14098844,234.13,234.05,4.2725]
[1732693336659,13.14098844,234.15,234.06,13.14098844]
[1732693337530,13.14098844,234.13,234.04,13.14098844]
[1732693338856,13.14098844,234.17,234.08,13.14098844]
[1732693339865,13.14098844,234.17,234.09,4.2718]
[1732693340552,13.14098844,234.17,234.08,13.14098844]
[1732693340738,13.14098844,234.15,234.06,13.14098844]
[1732693341540,13.14098844,234.15,234.05,4.2725]
[1732693341742,13.14098844,234.13,234.05,4.2725]
[1732693342135,15.27648844,234.13,234.04,23.61268844]
[1732693342348,13.14098844,234.11,234.04,10.4717]
[1732693343552,13.14098844,234.11,234.04,4.2727]
[1732693344448,13.14098844,234.11,234.01,33.14098844]
[1732693345758,13.14098844,234.11,234.02,20.0]
[1732693346061,13.14098844,234.11,234.03,4.2729]
[1732693348659,13.14098844,234.07,233.99,13.14098844]
[1732693349761,13.14098844,234.07,234.0,4.2735]
[1732693351553,13.14098844,234.07,233.99,4.2736]
[1732693351762,15.27708844,234.07,233.99,4.2736]
[1732693352275,13.14098844,234.05,233.97,17.41488844]
[1732693355770,13.14098844,234.03,233.95,17.41518844]
[1732693355945,13.14098844,233.99,233.91,13.14098844]
[1732693357145,13.14098844,233.99,233.92,4.2749]
[1732693358043,15.27778844,233.99,233.91,13.14098844]
[1732693358243,15.27778844,233.99,233.9,4.2751]
[1732693358244,13.14098844,233.97,233.89,17.41648844]
[1732693360370,15.27798844,233.97,233.89,17.41648844]
[1732693360745,13.14098844,233.95,233.89,4.2755]
[1732693364470,13.14098844,233.95,233.88,4.2756]
[1732693365273,13.14098844,233.95,233.87,13.14098844]
[1732693365453,13.14098844,233.93,233.86,5.025025]
[1732693365652,13.14098844,233.93,233.86,0.749225]
[1732693365859,13.14098844,233.91,233.86,0.749225]
[1732693366466,8.43631983,233.91,233.86,0.749225]
[1732693366671,8.43631983,233.89,233.86,0.749225]
[1732693367172,8.43631983,233.87,233.86,0.749225]
[1732693368046,10.57421983,233.87,233.86,0.749225]
[1732693368489,15.32496635,233.87,233.86,0.749225]
[1732693370256,13.18706635,233.87,233.86,0.749225]
[1732693372578,15.32486635,233.88,233.86,0.749225]
[1732693373250,2.1378,233.88,233.86,0.749225]
[1732693373451,33.18706635,233.87,233.86,0.749225]
[1732693374869,13.18706635,233.89,233.86,0.749225]
[1732693376177,16.5542,233.9,233.86,0.749225]
[1732693376366,22.1819,233.97,233.86,0.749225]
[1732693376550,24.3189,233.97,233.86,0.749225]
[1732693376753,24.3189,233.97,233.86,5.025225]
[1732693376976,13.18706635,233.95,233.86,5.025225]
[1732693377274,18.0127,233.97,233.87,13.18706635]
[1732693377275,29.06276635,233.97,233.87,13.18706635]
[1732693377650,13.18706635,233.95,233.87,13.18706635]
[1732693378368,13.18706635,233.95,233.88,4.2756]
[1732693379058,13.18706635,233.93,233.87,4.2757]
[1732693382374,13.18706635,233.91,233.87,4.2757]
[1732693382580,13.18706635,233.91,233.86,0.749225]
[1732693382874,13.18706635,233.91,233.86,5.025225]
[1732693386782,13.18706635,233.93,233.86,5.025225]
[1732693386950,13.18706635,233.95,233.87,13.18706635]
[1732693387156,13.18706635,233.95,233.86,5.025225]
[1732693388280,13.18706635,233.93,233.86,5.025225]
[1732693390573,8.43468162,233.93,233.86,5.025225]
[1732693391962,8.43468162,233.91,233.86,5.025225]
[1732693393078,8.43468162,233.91,233.86,0.749225]
[1732693393283,8.43468162,233.89,233.86,0.749225]
[1732693393979,8.43468162,233.89,233.86,5.025225]
[1732693395266,8.43468162,233.89,233.86,0.749225]
[1732693395464,8.43468162,233.89,233.86,5.025225]
[1732693396981,5.3424,233.98,233.86,5.025225]
[1732693396982,8.43468162,233.87,233.86,0.749225]
[1732693400879,10.57258162,233.87,233.86,0.749225]
[1732693403491,8.43468162,233.87,233.86,0.749225]
[1732693405066,10.57258162,233.87,233.86,0.749225]
[1732693406667,2.1379,233.87,233.86,0.749225]
[1732693406897,2.1375,233.91,233.86,0.749225]
[1732693407074,8.43468162,233.87,233.86,0.749225]
[1732693409590,20.0,233.9,233.86,0.749225]
[1732693409790,8.43468162,233.87,233.86,0.749225]
[1732693411873,10.57258162,233.87,233.86,0.749225]
[1732693413197,2.1379,233.87,233.86,0.749225]
[1732693413375,8.43468162,233.87,233.86,0.749225]
[1732693416988,10.57248162,233.88,233.86,0.749225]
[1732693420301,8.43468162,233.87,233.86,0.749225]
[1732693421890,20.0,233.84,233.69,28.60092023]
[1732693422097,8.43468162,233.76,233.73,4.2784]
[1732693422675,8.43468162,233.78,233.73,4.2784]
[1732693422979,39.08332648,233.88,233.73,4.2784]
[1732693422980,20.0,233.86,233.75,23.776884]
[1732693423296,8.43468162,233.83,233.75,23.776884]
[1732693424077,8.43468162,233.83,233.76,4.2778]
[1732693424273,8.43468162,233.81,233.76,4.2778]
[1732693425090,4.84154452,233.94,233.78,8.43468162]
[1732693425289,8.43468162,233.87,233.79,23.776884]
[1732693425489,2.1373,233.94,233.8,8.43468162]
[1732693425693,8.43468162,233.89,233.8,8.43468162]
[1732693426604,8.43468162,233.89,233.81,4.2769]
[1732693429099,8.43468162,233.87,233.81,4.2769]
[1732693430305,8.43468162,233.87,233.79,4.2773]
[1732693430610,8.43468162,233.87,233.8,23.776884]
[1732693432901,8.43468162,233.87,233.81,4.2769]
[1732693437299,20.0,233.94,233.81,4.2769]
[1732693437490,8.43468162,233.87,233.81,4.2769]
[1732693437686,20.0,233.94,233.82,23.776884]
[1732693438004,8.43468162,233.89,233.82,23.776884]
[1732693438703,8.43468162,233.89,233.83,4.2766]
[1732693439091,22.1372,233.96,233.84,32.21156562]
[1732693439294,8.43468162,233.93,233.84,32.21156562]
[1732693440001,6.97804452,234.02,233.89,23.776884]
[1732693440212,8.43468162,233.98,233.89,23.776884]
[1732693440589,8.43468162,233.98,233.9,8.43468162]
[1732693440809,8.43468162,233.99,233.91,4.2751]
[1732693441028,8.43468162,233.91,233.77,16.5035]
[1732693441309,10.93037277,233.98,233.79,12.71198162]
[1732693441692,8.43468162,233.9,233.79,12.71198162]
[1732693442312,8.43468162,233.93,233.83,8.43468162]
[1732693442504,4.84227277,233.98,233.86,23.776884]
[1732693442696,8.43468162,233.98,233.9,23.776884]
[1732693443096,8.43468162,234.0,233.91,14.80058162]
[1732693443299,8.43468162,233.98,233.92,23.776884]
[1732693444014,8.43468162,233.98,233.93,4.2747]
[1732693445494,8.43468162,233.96,233.91,6.3659]
[1732693445694,8.43468162,233.96,233.9,4.2752]
[1732693445904,8.43468162,233.94,233.9,4.2752]
[1732693446712,8.43468162,233.94,233.86,4.276]
[1732693447212,8.43468162,233.94,233.87,23.776884]
[1732693448101,3.91924042,234.04,233.87,23.776884]
[1732693448307,20.0,234.01,233.9,23.776884]
[1732693448498,8.43468162,233.99,233.9,23.776884]
[1732693448704,8.43468162,233.97,233.9,23.776884]
[1732693449014,8.43468162,233.97,233.91,4.2751]
[1732693449610,8.43468162,234.0,233.92,23.776884]
[1732693450911,5.36315385,234.08,233.96,8.43468162]
[1732693451108,21.2228,234.11,233.96,8.43468162]
[1732693451109,8.43468162,234.04,233.97,23.776884]
[1732693451910,2.1358,234.11,233.98,8.43468162]
[1732693452111,8.43468162,234.07,233.99,23.776884]
[1732693453104,5.36315385,234.13,233.96,4.2742]
[1732693453105,8.43468162,234.05,233.96,4.2742]
[1732693453325,8.43468162,234.05,233.97,8.43468162]
[1732693453706,22.1359,234.09,233.98,23.776884]
[1732693453901,8.43468162,234.07,233.97,23.776884]
[1732693454129,20.0,234.1,233.99,23.776884]
[1732693454422,8.43468162,234.07,234.0,8.43468162]
[1732693454627,8.43468162,234.07,233.98,8.43468162]
[1732693454834,8.43468162,234.07,233.99,23.776884]
[1732693455422,8.43468162,234.07,234.0,4.2735]
[1732693456526,8.43468162,234.09,234.02,8.43468162]
[1732693456825,5.36315385,234.13,234.03,15.4789]
[1732693457029,20.3737,234.25,234.1,8.43468162]
[1732693457204,8.43468162,234.2,234.13,23.776884]
[1732693457406,8.43468162,234.18,234.1,8.43468162]
[1732693457628,8.43468162,234.18,234.09,23.776884]
[1732693458435,8.43468162,234.18,234.1,4.2716]
[1732693458931,15.0375,234.25,234.11,32.21156562]
[1732693459138,8.43468162,234.21,234.11,32.21156562]
[1732693459511,8.43468162,234.21,234.15,23.776884]